[Event "*** SCC Grand Prix: Titled Tuesday Blitz"]
[Site "Chess.com"]
[Date "2020.10.13"]
[Round "5"]
[White "mjray79"]
[Black "Leonid_Starozhilov"]
[Result "0-1"]
[WhiteElo "2421"]
[BlackElo "2638"]
[TimeControl "180+1"]
[EndTime "10:54:48 PDT"]
[Termination "Leonid_Starozhilov won by checkmate"]

1. d4 {[%clk 0:03:00.9]} 1... Nf6 {[%clk 0:02:57.6]} 2. c4 {[%clk 0:03:01]} 2...
g6 {[%clk 0:02:57.7]} 3. Nc3 {[%clk 0:03:00.2]} 3... Bg7 {[%clk 0:02:58.1]} 4.
e4 {[%clk 0:02:59.8]} 4... d6 {[%clk 0:02:58.6]} 5. Nge2 {[%clk 0:02:58.8]} 5...
c6 {[%clk 0:02:55.3]} 6. Ng3 {[%clk 0:02:58.5]} 6... h5 {[%clk 0:02:55.3]} 7. h4
{[%clk 0:02:57]} 7... a6 {[%clk 0:02:48.9]} 8. a4 {[%clk 0:02:54.6]} 8... a5
{[%clk 0:02:49.1]} 9. Be2 {[%clk 0:02:53.8]} 9... Na6 {[%clk 0:02:49.4]} 10. Bg5
{[%clk 0:02:51.5]} 10... Nb4 {[%clk 0:02:46.1]} 11. Rc1 {[%clk 0:02:42.9]} 11...
Qc7 {[%clk 0:02:36.1]} 12. f4 {[%clk 0:02:41]} 12... Nh7 {[%clk 0:02:35.7]} 13.
f5 {[%clk 0:02:35.5]} 13... Nxg5 {[%clk 0:02:27.5]} 14. hxg5 {[%clk 0:02:36.4]}
14... Qb6 {[%clk 0:02:26.6]} 15. fxg6 {[%clk 0:02:23.3]} 15... fxg6 {[%clk
0:02:26.4]} 16. c5 {[%clk 0:01:39]} 16... dxc5 {[%clk 0:02:21.1]} 17. dxc5
{[%clk 0:01:39.9]} 17... Qc7 {[%clk 0:02:16.8]} 18. Nxh5 {[%clk 0:01:25.3]}
18... Be5 {[%clk 0:01:59.5]} 19. O-O {[%clk 0:00:57.9]} 19... Be6 {[%clk
0:01:38.9]} 20. Bg4 {[%clk 0:00:26.7]} 20... Bxg4 {[%clk 0:01:07.8]} 21. Qxg4
{[%clk 0:00:27.6]} 21... Bd4+ {[%clk 0:01:04.1]} 22. Rf2 {[%clk 0:00:26.6]}
22... Rxh5 {[%clk 0:00:39.8]} 23. Rf1 {[%clk 0:00:20.8]} 23... Qh2# {[%clk
0:00:38.5]} 0-1

[Event "*** SCC Grand Prix: Titled Tuesday Blitz"]
[Site "Chess.com"]
[Date "2020.10.13"]
[Round "5"]
[White "TST2014"]
[Black "ChronicUnhappiness"]
[Result "1-0"]
[WhiteElo "2535"]
[BlackElo "2351"]
[TimeControl "180+1"]
[EndTime "10:54:49 PDT"]
[Termination "TST2014 won on time"]

1. d4 {[%clk 0:03:00.9]} 1... d5 {[%clk 0:02:54]} 2. c4 {[%clk 0:03:00.2]} 2...
e6 {[%clk 0:02:53.7]} 3. Nf3 {[%clk 0:02:59.6]} 3... Nf6 {[%clk 0:02:53.6]} 4.
Nc3 {[%clk 0:02:59.3]} 4... Bb4 {[%clk 0:02:53.5]} 5. Qa4+ {[%clk 0:02:58.4]}
5... Nc6 {[%clk 0:02:53.2]} 6. e3 {[%clk 0:02:58.7]} 6... O-O {[%clk 0:02:52.8]}
7. Bd2 {[%clk 0:02:58.6]} 7... a6 {[%clk 0:02:48.6]} 8. a3 {[%clk 0:02:52.2]}
8... Bxc3 {[%clk 0:02:47.2]} 9. Bxc3 {[%clk 0:02:51.8]} 9... Ne4 {[%clk
0:02:47.6]} 10. Bd3 {[%clk 0:02:44.7]} 10... Nxc3 {[%clk 0:02:44.8]} 11. bxc3
{[%clk 0:02:44.1]} 11... dxc4 {[%clk 0:02:41.9]} 12. Bxc4 {[%clk 0:02:43.4]}
12... e5 {[%clk 0:01:48.5]} 13. Qc2 {[%clk 0:02:37.1]} 13... Qf6 {[%clk
0:01:43.5]} 14. Bd3 {[%clk 0:02:33.4]} 14... h6 {[%clk 0:01:33.2]} 15. O-O
{[%clk 0:02:32.2]} 15... Bg4 {[%clk 0:01:24]} 16. Be4 {[%clk 0:02:31.8]} 16...
Bxf3 {[%clk 0:01:17.4]} 17. Bxf3 {[%clk 0:02:31]} 17... Rad8 {[%clk 0:00:57.9]}
18. Rab1 {[%clk 0:02:30]} 18... Na5 {[%clk 0:00:57.5]} 19. Bxb7 {[%clk
0:02:20.9]} 19... Nc4 {[%clk 0:00:46.7]} 20. Qa2 {[%clk 0:02:15.3]} 20... Nd6
{[%clk 0:00:43.6]} 21. Bd5 {[%clk 0:02:11.3]} 21... Nf5 {[%clk 0:00:29]} 22. Rb7
{[%clk 0:02:02.8]} 22... Rd7 {[%clk 0:00:19.8]} 23. Be4 {[%clk 0:01:52]} 23...
Nd6 {[%clk 0:00:18.2]} 24. Bc6 {[%clk 0:01:51.6]} 24... Re7 {[%clk 0:00:14.6]}
25. Ra7 {[%clk 0:01:49.6]} 25... Qg5 {[%clk 0:00:13]} 26. Rxa6 {[%clk
0:01:46.8]} 26... Nf5 {[%clk 0:00:13.2]} 27. Qd5 {[%clk 0:01:40.6]} 27... Re6
{[%clk 0:00:12.6]} 28. Bb5 {[%clk 0:01:37.4]} 28... Rxa6 {[%clk 0:00:09.2]} 29.
Bxa6 {[%clk 0:01:36.9]} 29... Nh4 {[%clk 0:00:09.1]} 30. Bb7 {[%clk 0:01:34.2]}
30... Kh7 {[%clk 0:00:07.6]} 31. Qxe5 {[%clk 0:01:33.5]} 31... f5 {[%clk
0:00:07.6]} 32. Qg3 {[%clk 0:01:32.7]} 32... Qf6 {[%clk 0:00:06.8]} 33. Qxc7
{[%clk 0:01:28.4]} 33... f4 {[%clk 0:00:05.6]} 34. Qxf4 {[%clk 0:01:26.5]} 1-0

[Event "*** SCC Grand Prix: Titled Tuesday Blitz"]
[Site "Chess.com"]
[Date "2020.10.13"]
[Round "5"]
[White "pavelalexandru07"]
[Black "Chessbard1972"]
[Result "1-0"]
[WhiteElo "2243"]
[BlackElo "2359"]
[TimeControl "180+1"]
[EndTime "10:54:53 PDT"]
[Termination "pavelalexandru07 won by checkmate"]

1. e4 {[%clk 0:03:00.9]} 1... c5 {[%clk 0:02:51.9]} 2. Nf3 {[%clk 0:02:59.7]}
2... a6 {[%clk 0:02:52.1]} 3. c4 {[%clk 0:02:57.9]} 3... e6 {[%clk 0:02:51.7]}
4. d4 {[%clk 0:02:56.8]} 4... cxd4 {[%clk 0:02:51.3]} 5. Nxd4 {[%clk 0:02:57.3]}
5... Nf6 {[%clk 0:02:52.2]} 6. Nc3 {[%clk 0:02:57.1]} 6... Qc7 {[%clk
0:02:52.7]} 7. a3 {[%clk 0:02:51.9]} 7... b6 {[%clk 0:02:52.6]} 8. Be2 {[%clk
0:02:48.9]} 8... Bb7 {[%clk 0:02:52.6]} 9. f3 {[%clk 0:02:49.2]} 9... Nc6 {[%clk
0:02:52.4]} 10. Be3 {[%clk 0:02:48.1]} 10... Ne5 {[%clk 0:02:50.1]} 11. Rc1
{[%clk 0:02:47.5]} 11... Rc8 {[%clk 0:02:49.5]} 12. O-O {[%clk 0:02:43.6]} 12...
Ng6 {[%clk 0:02:48.8]} 13. Qd2 {[%clk 0:02:37.9]} 13... h5 {[%clk 0:02:48]} 14.
Bd3 {[%clk 0:02:23.8]} 14... h4 {[%clk 0:02:46.6]} 15. Kh1 {[%clk 0:01:49.6]}
15... Nh5 {[%clk 0:02:40.9]} 16. f4 {[%clk 0:01:03.9]} 16... Bc5 {[%clk
0:02:17.2]} 17. Nce2 {[%clk 0:00:49.5]} 17... e5 {[%clk 0:02:10.2]} 18. Nf5
{[%clk 0:00:44.6]} 18... O-O {[%clk 0:02:02.8]} 19. Bxc5 {[%clk 0:00:41.3]}
19... Qxc5 {[%clk 0:02:00.2]} 20. b4 {[%clk 0:00:41.3]} 20... Qc7 {[%clk
0:01:57.1]} 21. fxe5 {[%clk 0:00:37.6]} 21... Qxe5 {[%clk 0:01:51.3]} 22. Qg5
{[%clk 0:00:33.7]} 22... Nf6 {[%clk 0:01:42.6]} 23. Nf4 {[%clk 0:00:33.5]} 23...
Rfe8 {[%clk 0:01:15.6]} 24. Nxg6 {[%clk 0:00:26.8]} 24... fxg6 {[%clk
0:01:14.6]} 25. Qxg6 {[%clk 0:00:27.4]} 25... Bxe4 {[%clk 0:00:34.2]} 26. Qxg7#
{[%clk 0:00:26.3]} 1-0

[Event "*** SCC Grand Prix: Titled Tuesday Blitz"]
[Site "Chess.com"]
[Date "2020.10.13"]
[Round "5"]
[White "juancruzarias"]
[Black "tdf98pantani"]
[Result "1-0"]
[WhiteElo "2536"]
[BlackElo "2714"]
[TimeControl "180+1"]
[EndTime "10:54:54 PDT"]
[Termination "juancruzarias won by resignation"]

1. e4 {[%clk 0:03:00.9]} 1... c6 {[%clk 0:02:59.6]} 2. Nc3 {[%clk 0:03:00.9]}
2... d5 {[%clk 0:02:59.7]} 3. Nf3 {[%clk 0:03:01.4]} 3... a6 {[%clk 0:02:56.3]}
4. a4 {[%clk 0:02:57.1]} 4... Nf6 {[%clk 0:02:49.8]} 5. Qe2 {[%clk 0:02:49.5]}
5... Bg4 {[%clk 0:02:39.4]} 6. d3 {[%clk 0:02:44]} 6... e6 {[%clk 0:02:38.7]} 7.
h3 {[%clk 0:02:44.1]} 7... Bh5 {[%clk 0:02:33.6]} 8. g4 {[%clk 0:02:31.7]} 8...
Bg6 {[%clk 0:02:33.7]} 9. Bg2 {[%clk 0:02:32.2]} 9... Bb4 {[%clk 0:02:29.6]} 10.
e5 {[%clk 0:02:32.3]} 10... Nfd7 {[%clk 0:02:29.2]} 11. O-O {[%clk 0:02:30.2]}
11... h5 {[%clk 0:02:26.3]} 12. Bf4 {[%clk 0:02:22.3]} 12... hxg4 {[%clk
0:02:25.7]} 13. hxg4 {[%clk 0:02:23.2]} 13... c5 {[%clk 0:02:25.9]} 14. Nb1
{[%clk 0:02:22.7]} 14... Nc6 {[%clk 0:02:25.4]} 15. c3 {[%clk 0:02:18.2]} 15...
Ba5 {[%clk 0:02:24.9]} 16. Nbd2 {[%clk 0:02:13.1]} 16... Bc7 {[%clk 0:02:23.1]}
17. d4 {[%clk 0:02:05.1]} 17... cxd4 {[%clk 0:02:02.5]} 18. cxd4 {[%clk
0:02:01.5]} 18... Nb4 {[%clk 0:02:02.9]} 19. Bg5 {[%clk 0:01:37.1]} 19... Qb8
{[%clk 0:01:56.6]} 20. Rfc1 {[%clk 0:01:33.4]} 20... Nd3 {[%clk 0:01:51.8]} 21.
Rc3 {[%clk 0:01:32.1]} 21... Nxb2 {[%clk 0:01:38.6]} 22. Rb3 {[%clk 0:01:31.1]}
22... Nc4 {[%clk 0:01:29.9]} 23. Nxc4 {[%clk 0:01:31.2]} 23... dxc4 {[%clk
0:01:30.3]} 24. Qxc4 {[%clk 0:01:32.1]} 24... Be4 {[%clk 0:01:30.7]} 25. Nd2
{[%clk 0:01:21.6]} 25... Bxg2 {[%clk 0:01:29.4]} 26. Kxg2 {[%clk 0:01:22.5]}
26... O-O {[%clk 0:01:11.5]} 27. Rh1 {[%clk 0:01:21.5]} 27... b5 {[%clk
0:01:05.5]} 28. Rbh3 {[%clk 0:01:21.3]} 28... Qb7+ {[%clk 0:01:03.5]} 29. d5
{[%clk 0:01:21.3]} 29... f6 {[%clk 0:01:01.7]} 30. Qe4 {[%clk 0:00:52.9]} 30...
f5 {[%clk 0:00:35.7]} 31. Rh8+ {[%clk 0:00:51.7]} 31... Kf7 {[%clk 0:00:35.7]}
32. dxe6+ {[%clk 0:00:52.2]} 32... Kxe6 {[%clk 0:00:33.1]} 33. Qxb7 {[%clk
0:00:52.3]} 1-0

[Event "*** SCC Grand Prix: Titled Tuesday Blitz"]
[Site "Chess.com"]
[Date "2020.10.13"]
[Round "5"]
[White "elcandado"]
[Black "PowerThinking2650"]
[Result "1-0"]
[WhiteElo "2572"]
[BlackElo "2371"]
[TimeControl "180+1"]
[EndTime "10:54:58 PDT"]
[Termination "elcandado won by checkmate"]

1. d4 {[%clk 0:03:00.9]} 1... Nf6 {[%clk 0:02:58.8]} 2. Bf4 {[%clk 0:03:01.2]}
2... g6 {[%clk 0:02:58.1]} 3. e3 {[%clk 0:02:57.4]} 3... Bg7 {[%clk 0:02:57.5]}
4. Be2 {[%clk 0:02:56.9]} 4... O-O {[%clk 0:02:57.6]} 5. Nf3 {[%clk 0:02:57.3]}
5... d5 {[%clk 0:02:57.7]} 6. O-O {[%clk 0:02:54.5]} 6... c5 {[%clk 0:02:58.2]}
7. c3 {[%clk 0:02:54.3]} 7... Nc6 {[%clk 0:02:58.6]} 8. h3 {[%clk 0:02:53]} 8...
b6 {[%clk 0:02:58.9]} 9. Nbd2 {[%clk 0:02:52.3]} 9... Bb7 {[%clk 0:02:59]} 10.
Bh2 {[%clk 0:02:46.6]} 10... Nd7 {[%clk 0:02:58.4]} 11. Re1 {[%clk 0:02:44]}
11... e5 {[%clk 0:02:57.9]} 12. dxe5 {[%clk 0:02:44.2]} 12... Ndxe5 {[%clk
0:02:58.8]} 13. Nxe5 {[%clk 0:02:44.4]} 13... Nxe5 {[%clk 0:02:59.7]} 14. Nf3
{[%clk 0:02:44.7]} 14... Re8 {[%clk 0:02:55.9]} 15. Nxe5 {[%clk 0:02:43.7]}
15... Bxe5 {[%clk 0:02:56.6]} 16. Bxe5 {[%clk 0:02:44]} 16... Rxe5 {[%clk
0:02:57.2]} 17. Bf3 {[%clk 0:02:44.6]} 17... Qe7 {[%clk 0:02:53.9]} 18. Qa4
{[%clk 0:02:41.8]} 18... a6 {[%clk 0:02:40.5]} 19. Red1 {[%clk 0:02:41]} 19...
Rd8 {[%clk 0:02:35.4]} 20. Rd2 {[%clk 0:02:36.3]} 20... b5 {[%clk 0:02:29.8]}
21. Qa3 {[%clk 0:02:27.2]} 21... Rg5 {[%clk 0:01:50]} 22. Rad1 {[%clk
0:02:23.2]} 22... d4 {[%clk 0:01:44]} 23. Bxb7 {[%clk 0:02:15]} 23... Qxb7
{[%clk 0:01:44.9]} 24. f4 {[%clk 0:02:14.4]} 24... Rg3 {[%clk 0:01:33.6]} 25.
Qxc5 {[%clk 0:02:11.9]} 25... Rd5 {[%clk 0:01:26.8]} 26. Qb4 {[%clk 0:02:02.2]}
26... Rxe3 {[%clk 0:01:09.4]} 27. Rxd4 {[%clk 0:02:00.8]} 27... Rxd4 {[%clk
0:00:59.7]} 28. Rxd4 {[%clk 0:01:38.5]} 28... Re2 {[%clk 0:00:32.6]} 29. Rd8+
{[%clk 0:01:34.9]} 29... Kg7 {[%clk 0:00:32.8]} 30. Qd4+ {[%clk 0:01:35.2]}
30... Kh6 {[%clk 0:00:29.3]} 31. Rd5 {[%clk 0:01:35.5]} 31... Rxb2 {[%clk
0:00:18.1]} 32. g4 {[%clk 0:01:31.3]} 32... Qe7 {[%clk 0:00:17.1]} 33. Re5
{[%clk 0:01:20.7]} 33... Qh4 {[%clk 0:00:14.4]} 34. g5+ {[%clk 0:01:16]} 34...
Kg7 {[%clk 0:00:06.4]} 35. Re8+ {[%clk 0:01:13.2]} 35... f6 {[%clk 0:00:06.3]}
36. Qxf6# {[%clk 0:01:13.5]} 1-0

[Event "*** SCC Grand Prix: Titled Tuesday Blitz"]
[Site "Chess.com"]
[Date "2020.10.13"]
[Round "5"]
[White "CM_rui"]
[Black "shriyanasmallya"]
[Result "0-1"]
[WhiteElo "2341"]
[BlackElo "1630"]
[TimeControl "180+1"]
[EndTime "10:55:01 PDT"]
[Termination "shriyanasmallya won on time"]

1. e4 {[%clk 0:03:00.9]} 1... e5 {[%clk 0:02:59.2]} 2. Nf3 {[%clk 0:02:59.6]}
2... Nc6 {[%clk 0:02:57.4]} 3. Bb5 {[%clk 0:02:58.6]} 3... a6 {[%clk 0:02:54]}
4. Ba4 {[%clk 0:02:58.7]} 4... Nge7 {[%clk 0:02:54.1]} 5. O-O {[%clk 0:02:57.7]}
5... g6 {[%clk 0:02:54.2]} 6. c3 {[%clk 0:02:57.9]} 6... Bg7 {[%clk 0:02:52.9]}
7. d4 {[%clk 0:02:58]} 7... exd4 {[%clk 0:02:52.1]} 8. cxd4 {[%clk 0:02:58.9]}
8... b5 {[%clk 0:02:51.3]} 9. Bc2 {[%clk 0:02:56.3]} 9... d6 {[%clk 0:02:49.9]}
10. Nc3 {[%clk 0:02:52]} 10... Bg4 {[%clk 0:02:48.7]} 11. Be3 {[%clk 0:02:24.9]}
11... Bxf3 {[%clk 0:02:45.9]} 12. gxf3 {[%clk 0:02:14.6]} 12... Qd7 {[%clk
0:02:41.2]} 13. d5 {[%clk 0:01:50.3]} 13... Ne5 {[%clk 0:02:39.4]} 14. f4 {[%clk
0:01:46.6]} 14... Nc4 {[%clk 0:02:32.1]} 15. Qf3 {[%clk 0:01:15]} 15... Nxb2
{[%clk 0:02:25.7]} 16. Ne2 {[%clk 0:01:11.3]} 16... O-O {[%clk 0:02:10.7]} 17.
Kh1 {[%clk 0:01:08.1]} 17... f5 {[%clk 0:02:06.1]} 18. Nd4 {[%clk 0:00:52.2]}
18... fxe4 {[%clk 0:01:53.7]} 19. Bxe4 {[%clk 0:00:44.2]} 19... Nc4 {[%clk
0:01:45.9]} 20. Rac1 {[%clk 0:00:38.9]} 20... Bxd4 {[%clk 0:01:36]} 21. Bxd4
{[%clk 0:00:30.8]} 21... Nd2 {[%clk 0:01:35.1]} 22. Qc3 {[%clk 0:00:18.6]} 22...
Nxe4 {[%clk 0:01:32.5]} 23. Qb2 {[%clk 0:00:17]} 23... Nxd5 {[%clk 0:01:22.3]}
24. Rce1 {[%clk 0:00:12.8]} 24... Rae8 {[%clk 0:01:18.8]} 25. Qc2 {[%clk
0:00:09.7]} 25... Qf5 {[%clk 0:01:10.6]} 26. Qc6 {[%clk 0:00:02.5]} 26... Nxf4
{[%clk 0:00:57.8]} 0-1

[Event "*** SCC Grand Prix: Titled Tuesday Blitz"]
[Site "Chess.com"]
[Date "2020.10.13"]
[Round "5"]
[White "Fandorine"]
[Black "keepitcool9499"]
[Result "1-0"]
[WhiteElo "2859"]
[BlackElo "2628"]
[TimeControl "180+1"]
[EndTime "10:55:05 PDT"]
[Termination "Fandorine won by resignation"]

1. Nf3 {[%clk 0:03:00.9]} 1... e6 {[%clk 0:03:00.9]} 2. g3 {[%clk 0:03:01]} 2...
d5 {[%clk 0:03:01.8]} 3. Bg2 {[%clk 0:03:01.9]} 3... Nf6 {[%clk 0:03:02.7]} 4.
O-O {[%clk 0:03:02.7]} 4... Be7 {[%clk 0:03:03.6]} 5. d3 {[%clk 0:03:03.5]} 5...
O-O {[%clk 0:03:04.5]} 6. Nbd2 {[%clk 0:03:04.4]} 6... b6 {[%clk 0:03:05]} 7. e4
{[%clk 0:03:05.1]} 7... Bb7 {[%clk 0:03:05.9]} 8. Re1 {[%clk 0:03:04.8]} 8... c5
{[%clk 0:03:05.4]} 9. e5 {[%clk 0:03:05]} 9... Nfd7 {[%clk 0:03:03.2]} 10. Nf1
{[%clk 0:03:05.3]} 10... Nc6 {[%clk 0:03:03.5]} 11. h4 {[%clk 0:03:05.9]} 11...
b5 {[%clk 0:03:03.2]} 12. N1h2 {[%clk 0:03:05.5]} 12... a5 {[%clk 0:03:04.1]}
13. Ng4 {[%clk 0:03:03.1]} 13... b4 {[%clk 0:03:04.1]} 14. Bg5 {[%clk
0:03:00.8]} 14... a4 {[%clk 0:03:02.5]} 15. a3 {[%clk 0:03:01.2]} 15... bxa3
{[%clk 0:03:01.2]} 16. bxa3 {[%clk 0:03:02.1]} 16... Nd4 {[%clk 0:03:00.4]} 17.
Nxd4 {[%clk 0:02:57.1]} 17... cxd4 {[%clk 0:03:01.3]} 18. Qd2 {[%clk 0:02:54.5]}
18... Bxg5 {[%clk 0:02:57.5]} 19. hxg5 {[%clk 0:02:54.6]} 19... Qc7 {[%clk
0:02:55.5]} 20. Rab1 {[%clk 0:02:27.6]} 20... Rab8 {[%clk 0:02:16]} 21. Rb4
{[%clk 0:02:09.5]} 21... Bc6 {[%clk 0:02:06.4]} 22. Rxd4 {[%clk 0:02:06.1]}
22... Rb2 {[%clk 0:01:56.3]} 23. Rb4 {[%clk 0:01:31.9]} 23... Rb8 {[%clk
0:01:46.9]} 24. Rxb2 {[%clk 0:01:28.6]} 24... Rxb2 {[%clk 0:01:47.8]} 25. Qc3
{[%clk 0:01:24.3]} 25... Qb6 {[%clk 0:01:42.6]} 26. d4 {[%clk 0:01:23.7]} 26...
Bb7 {[%clk 0:01:23.7]} 27. Ne3 {[%clk 0:01:03.5]} 27... Ba6 {[%clk 0:01:15.8]}
28. f4 {[%clk 0:01:01.5]} 28... Bb7 {[%clk 0:01:09.5]} 29. f5 {[%clk 0:00:56.6]}
29... exf5 {[%clk 0:01:06.2]} 30. Nxf5 {[%clk 0:00:55.1]} 30... Rb5 {[%clk
0:00:54.9]} 31. Nd6 {[%clk 0:00:50.4]} 31... Rb1 {[%clk 0:00:45.4]} 32. Rxb1
{[%clk 0:00:42.9]} 32... Qxb1+ {[%clk 0:00:46.3]} 33. Kh2 {[%clk 0:00:42.1]}
33... Nf8 {[%clk 0:00:38.2]} 34. Qc7 {[%clk 0:00:39.1]} 1-0

[Event "*** SCC Grand Prix: Titled Tuesday Blitz"]
[Site "Chess.com"]
[Date "2020.10.13"]
[Round "5"]
[White "TotsukaBlade"]
[Black "SophieNikoladze"]
[Result "0-1"]
[WhiteElo "2374"]
[BlackElo "2257"]
[TimeControl "180+1"]
[EndTime "10:55:06 PDT"]
[Termination "SophieNikoladze won by resignation"]

1. e4 {[%clk 0:03:00.9]} 1... d6 {[%clk 0:02:58.4]} 2. d4 {[%clk 0:03:01]} 2...
Nf6 {[%clk 0:02:58.8]} 3. Bd3 {[%clk 0:03:01.6]} 3... e5 {[%clk 0:02:58.2]} 4.
c3 {[%clk 0:03:01.6]} 4... Nbd7 {[%clk 0:02:58.1]} 5. Nf3 {[%clk 0:03:01.7]}
5... Be7 {[%clk 0:02:58.2]} 6. O-O {[%clk 0:03:01.1]} 6... O-O {[%clk
0:02:57.9]} 7. Nbd2 {[%clk 0:03:01.3]} 7... c6 {[%clk 0:02:58]} 8. Re1 {[%clk
0:03:01.7]} 8... Qc7 {[%clk 0:02:57.7]} 9. Nf1 {[%clk 0:03:01.7]} 9... b5 {[%clk
0:02:56.7]} 10. Ng3 {[%clk 0:03:01.7]} 10... Re8 {[%clk 0:02:55.1]} 11. h3
{[%clk 0:03:01.8]} 11... Bf8 {[%clk 0:02:54.8]} 12. Nh2 {[%clk 0:03:02]} 12...
Nb6 {[%clk 0:02:52.1]} 13. f4 {[%clk 0:03:02.2]} 13... a6 {[%clk 0:02:47.9]} 14.
Be3 {[%clk 0:02:59.7]} 14... c5 {[%clk 0:02:43.5]} 15. Qd2 {[%clk 0:02:52.7]}
15... Bb7 {[%clk 0:02:34.4]} 16. Rac1 {[%clk 0:02:38.9]} 16... Rad8 {[%clk
0:02:22.3]} 17. fxe5 {[%clk 0:02:30.7]} 17... dxe5 {[%clk 0:02:17.9]} 18. d5
{[%clk 0:02:31.2]} 18... c4 {[%clk 0:02:11]} 19. Bb1 {[%clk 0:02:27.8]} 19...
Nbd7 {[%clk 0:02:01.3]} 20. Nf5 {[%clk 0:02:13.6]} 20... Bc5 {[%clk 0:01:56.2]}
21. Qf2 {[%clk 0:02:09.3]} 21... Bxe3 {[%clk 0:01:54.6]} 22. Rxe3 {[%clk
0:02:10.2]} 22... Nf8 {[%clk 0:01:51]} 23. Rf1 {[%clk 0:02:03.2]} 23... N8d7
{[%clk 0:01:35.2]} 24. Qg3 {[%clk 0:01:20.9]} 24... Nh5 {[%clk 0:01:31.7]} 25.
Nh6+ {[%clk 0:01:14.6]} 25... Kh8 {[%clk 0:01:29.7]} 26. Nxf7+ {[%clk
0:01:13.8]} 26... Kg8 {[%clk 0:01:30]} 27. Qf3 {[%clk 0:01:09.5]} 27... Ndf6
{[%clk 0:01:27.4]} 28. Nxd8 {[%clk 0:01:09.7]} 28... Rxd8 {[%clk 0:01:27.3]} 29.
Ng4 {[%clk 0:01:06.5]} 29... Nxg4 {[%clk 0:01:24.3]} 30. Qxg4 {[%clk 0:01:05.8]}
30... Nf4 {[%clk 0:01:24.2]} 31. g3 {[%clk 0:00:58.2]} 31... Qc5 {[%clk
0:01:20.7]} 32. Re1 {[%clk 0:00:33.8]} 32... Bc8 {[%clk 0:01:20.5]} 33. Qf3
{[%clk 0:00:29.9]} 33... Nxh3+ {[%clk 0:01:18.5]} 34. Kh2 {[%clk 0:00:28]} 34...
Ng5 {[%clk 0:01:18]} 35. Qg2 {[%clk 0:00:23.6]} 35... Rf8 {[%clk 0:01:13.9]} 36.
b3 {[%clk 0:00:18.9]} 36... Bg4 {[%clk 0:01:12.4]} 37. Bc2 {[%clk 0:00:14.6]}
37... Nf3+ {[%clk 0:01:11.3]} 38. Kh1 {[%clk 0:00:13.2]} 38... Nxe1 {[%clk
0:01:11]} 39. Rxe1 {[%clk 0:00:13.7]} 39... Bf3 {[%clk 0:01:11.1]} 0-1

[Event "*** SCC Grand Prix: Titled Tuesday Blitz"]
[Site "Chess.com"]
[Date "2020.10.13"]
[Round "5"]
[White "vovachesss"]
[Black "Msb2"]
[Result "0-1"]
[WhiteElo "2676"]
[BlackElo "2934"]
[TimeControl "180+1"]
[EndTime "10:55:11 PDT"]
[Termination "Msb2 won by resignation"]

1. e4 {[%clk 0:02:58.4]} 1... e6 {[%clk 0:02:59.3]} 2. Qe2 {[%clk 0:02:57.6]}
2... c5 {[%clk 0:02:58.6]} 3. Nf3 {[%clk 0:02:56.1]} 3... Nc6 {[%clk 0:02:59.1]}
4. g3 {[%clk 0:02:56.2]} 4... g6 {[%clk 0:02:59.7]} 5. Bg2 {[%clk 0:02:56.8]}
5... Bg7 {[%clk 0:03:00.3]} 6. O-O {[%clk 0:02:57.6]} 6... Nge7 {[%clk 0:03:01]}
7. c3 {[%clk 0:02:58.4]} 7... O-O {[%clk 0:03:01.5]} 8. Rd1 {[%clk 0:02:59.2]}
8... e5 {[%clk 0:02:55.5]} 9. Na3 {[%clk 0:02:56.5]} 9... d6 {[%clk 0:02:55.3]}
10. Nc2 {[%clk 0:02:57.1]} 10... f5 {[%clk 0:02:45.9]} 11. exf5 {[%clk
0:02:38.6]} 11... Nxf5 {[%clk 0:02:36.4]} 12. d4 {[%clk 0:02:09.7]} 12... exd4
{[%clk 0:02:28.4]} 13. cxd4 {[%clk 0:02:10.6]} 13... cxd4 {[%clk 0:02:21.3]} 14.
Bg5 {[%clk 0:02:01.8]} 14... Qe8 {[%clk 0:01:43.1]} 15. Qd3 {[%clk 0:01:51.9]}
15... h6 {[%clk 0:01:39]} 16. Re1 {[%clk 0:01:48.1]} 16... Qf7 {[%clk
0:01:38.3]} 17. Bd2 {[%clk 0:01:40.9]} 17... Bd7 {[%clk 0:01:35.8]} 18. b4
{[%clk 0:01:26.3]} 18... a6 {[%clk 0:01:31.3]} 19. a4 {[%clk 0:01:21.2]} 19...
Be6 {[%clk 0:01:17.4]} 20. Na3 {[%clk 0:00:47.3]} 20... Ne5 {[%clk 0:01:10.4]}
21. Nxe5 {[%clk 0:00:45.6]} 21... dxe5 {[%clk 0:01:11.3]} 22. Rac1 {[%clk
0:00:40.9]} 22... Nd6 {[%clk 0:01:10.1]} 23. f4 {[%clk 0:00:35.1]} 23... Bf5
{[%clk 0:01:06.6]} 24. Qe2 {[%clk 0:00:27.5]} 24... e4 {[%clk 0:00:50.7]} 25. g4
{[%clk 0:00:09.1]} 25... Be6 {[%clk 0:00:50.9]} 26. Bxe4 {[%clk 0:00:09]} 26...
Nxe4 {[%clk 0:00:51.8]} 27. Qxe4 {[%clk 0:00:09.9]} 27... Bxg4 {[%clk
0:00:52.6]} 28. Nc4 {[%clk 0:00:08.3]} 28... Rae8 {[%clk 0:00:51.6]} 29. Ne5
{[%clk 0:00:08.2]} 29... Bxe5 {[%clk 0:00:51.2]} 0-1